Cogmind - Beta 17.1 @@@ ROGUE MODE // 2026.09.19 @ 23:29:51 Player: Ammie Result: Destroyed by D-53 Grenadier with Mini Grenade Launcher Performance ------------- Evolutions (0) 0 Regions Visited (2) 400 Robots Destroyed (25) 125 Value Destroyed (538) 538 Prototype IDs (0) 0 Alien Tech Used (0) 0 Bonus (60) 60 TOTAL SCORE: 1123 Bonus ------- Follower Combat Kills 60 Cogmind --------- Core Integrity 0/250 Matter 300/300 Energy 261/265 System Corruption 1% Temperature Cool (2) Movement Core (600) Ox11 Location -10/Mines Parts ------- > --- POWER (1) -------- Improved Ion Engine > --- PROPULSION (2) --- (None) > --- UTILITY (2) ------ Large Storage Unit > --- WEAPON (2) ------- Light EM Pulse Cannon Light EM Pulse Cannon > --- INVENTORY (15) --- Improved Ion Engine Improved Ion Engine Improved Ion Engine Structural Scanner Hacking Suite EM Pulse Gun Medium Laser Particle Gun Light EM Pulse Cannon Light EM Pulse Cannon Rocket Launcher Mining Laser Peak State ------------ > --- POWER ------------ Improved Ion Engine > --- PROPULSION ------- Light Treads Light Treads > --- UTILITY ---------- Large Storage Unit Terrain Scanner > --- WEAPON ----------- Light EM Pulse Cannon Light EM Pulse Cannon > --- INVENTORY -------- Ion Engine Ion Engine Ion Engine Light Ion Engine Improved Ion Engine Improved Ion Engine Improved Ion Engine Hacking Suite EM Pulse Gun Medium Laser Medium Laser Light EM Pulse Cannon Light EM Pulse Cannon Rocket Launcher [Rating: 12] Favorites ----------- Power Ion Engine Engine Ion Engine Propulsion Light Treads Treads Light Treads Utility Large Storage Unit Device Terrain Scanner Storage Large Storage Unit Weapon EM Pulse Gun Energy Gun EM Pulse Gun Energy Cannon Light EM Pulse Cannon Ballistic Gun Light Assault Rifle Build | -11 -10 -10 ------- Run | Yrd Mat Min Slots Evolved . | . . . Power . | . . . Propulsion . | . . . Utility . | . . . Weapon . | . . . Parts Attached 19 | 6 13 . Power 4 | 1 3 . Engine 4 | 1 3 . Core . | . . . Reactor . | . . . Propulsion 2 | 2 . . Treads 2 | 2 . . Leg . | . . . Wheel . | . . . Hover . | . . . Flight . | . . . Utility 6 | 1 5 . Device 3 | . 3 . Storage 3 | 1 2 . Processor . | . . . Hackware . | . . . Protection . | . . . Artifact . | . . . Weapon 7 | 2 5 . Energy Gun 4 | 1 3 . Energy Cannon 2 | . 2 . Ballistic Gun 1 | 1 . . Ballistic Cannon . | . . . Launcher . | . . . Special Weapon . | . . . Impact Weapon . | . . . Slashing Weapon . | . . . Piercing Weapon . | . . . Special Melee Weapon . | . . . Unidentified Prototypes . | . . . Parts Lost 5 | . 2 3 Power . | . . . Propulsion 2 | . . 2 Utility 2 | . 1 1 Weapon 1 | . 1 . Highest Loss Streak 3 | . 1 3 To Critical Strikes . | . . . Average Backups 7 | 1 7 12 Power 2 | . 2 3 Propulsion . | . . . Utility 1 | . 1 2 Weapon 3 | . 3 6 Tool/Special . | . . . Unused Backups 15 | . 2 13 Power 4 | . . 4 Propulsion . | . . . Utility 2 | . . 2 Weapon 9 | . 2 7 Tool/Special . | . . . Average Slot Usage (%) 93 | . 92 100 Engine 13 | . 13 14 Treads 27 | . 27 28 Device 9 | . 8 14 Storage 14 | . 14 14 Energy Gun 15 | . 17 . Energy Cannon 8 | . 4 28 Ballistic Gun 3 | . 4 . Peak Build Rating 12 | 6 12 12 Average Rating 8 | 4 7 11 On Entrance 6 | . 6 12 Avg Prop Armor Cover (%) . | . . . Naked Turns . | . . . Heaviest Build 36 | 13 36 36 Greatest Support 40 | 40 40 40 Greatest Overweight (x) 3 | 2 3 . Average Overweight (x) . | . . . Largest Inventory Capacity 15 | 8 15 15 Average Capacity 11 | 7 11 15 Most Carried 15 | 2 15 14 Average Carried 7 | 1 7 11 Final Capacity 15 | 8 15 15 Final Carried 15 | 2 15 12 Class Distribution -------------------- 100% | Mutant Dominant Class ---------------- Mutant | -10/Materials Mutant | -10/Mines Resources | -11 -10 -10 ----------- Run | Yrd Mat Min Matter Collected 491 | 109 382 . Remotely . | . . . Salvage Created 807 | . 807 . Parts 56 | . 56 . Haulers Intercepted 2 | . 2 . Recyclers Shooed . | . . . Parts Field Recycled . | . . . Retrieved Matter . | . . . Parts Self-Destructed . | . . . Prevented . | . . . Parts Restored . | . . . Kills | -11 -10 -10 ------- Run | Yrd Mat Min Combat Hostiles Destroyed 14 | . 14 . Guns 11 | . 11 . Cannons 2 | . 2 . AOE 1 | . 1 . Classes Destroyed 7 | . 7 . Worker 3 | . 3 . Builder 1 | . 1 . Hauler 2 | . 2 . Operator 2 | . 2 . Watcher 3 | . 3 . Swarmer 4 | . 4 . Grunt 10 | . 10 . Best Kill Streak 4 | . 4 . Combat Bots Only 3 | . 3 . Max Kills in Single Turn 1 | . 1 . Gunslinging . | . . . Exploded 1 | . 1 . Melee . | . . . Uniques/NPCs Destroyed . | . . . Combat | -11 -10 -10 -------- Run | Yrd Mat Min Hostile Shots Fired 88 | . 80 8 Missed 25 | . 24 1 Hits 63 | . 56 7 Projectile 63 | . 56 7 AOE 8 | . . 8 Critical Strikes 3 | . 3 . Damage Taken 917 | . 579 338 Core 256 | . 106 150 Absorbed by Shields . | . . . Core Remaining (%) 100 | 100 . . Volleys Fired 74 | . 73 1 Largest 2 | . 2 2 Hottest 112 | . 112 112 Shots Fired 136 | . 134 2 Gun 122 | . 122 . Cannon 14 | . 12 2 Launcher . | . . . Special . | . . . Kinetic 17 | . 17 . Thermal . | . . . Explosive . | . . . Electromagnetic 119 | . 117 2 Robot Hit Streak 10 | . 10 1 Robot Miss Streak 4 | . 4 1 Penetration Max . | . . . Secondary Targets 2 | . 2 . Max Gunslinging Chain 1 | . 1 . Shots Hit Robots 64 | . 63 1 Core Hits 32 | . 32 . Critical Kills . | . . . Critical Parts Destroyed . | . . . Critical Strikes . | . . . Melee Attacks . | . . . Impact . | . . . Slashing . | . . . Piercing . | . . . Sneak Attacks . | . . . Combat Hostiles . | . . . Follow-up Attacks . | . . . Damage Inflicted 1187 | . 1165 22 Guns 872 | . 872 . Cannons 142 | . 120 22 Explosions 173 | . 173 . Melee . | . . . Ramming . | . . . Kinetic 58 | . 58 . Thermal 173 | . 173 . Explosive . | . . . Electromagnetic 956 | . 934 22 Impact . | . . . Slashing . | . . . Piercing . | . . . Highest Corruption 1 | . 1 1 Average Corruption 1 | . 1 1 Corruption Purged . | . . . Corruption Blocked . | . . . Effects 13 | . 11 2 Message Errors 2 | . 2 . Matter Fused 5 | . 4 1 Energy Discharges 1 | . . 1 Parts Rejected 1 | . 1 . Data Loss (minor) 3 | . 3 . Weapon Failures 1 | . 1 . Overload Shots . | . . . Overflow Damage 4 | . 4 . Projectiles . | . . . Explosions 4 | . 4 . Melee . | . . . Knockbacks . | . . . Impact . | . . . Kinetic . | . . . Secondary . | . . . Self-Inflicted Damage . | . . . Shots . | . . . Rammed . | . . . Targets Rammed . | . . . Kicked . | . . . Crushed . | . . . Highest Temperature 186 | . 186 54 Average Temperature 52 | . 53 27 Received Heat Transfer 282 | . 282 . Siege Activations . | . . . Martial Activations . | . . . Shielding Activations . | . . . Robots Disrupted . | . . . Combat Hostiles . | . . . Robots Corrupted 1 | . 1 . Combat Hostiles . | . . . Parts Fried 5 | . 5 . Impact Corruptions . | . . . Robots Melted . | . . . Combat Hostiles . | . . . Parts Melted . | . . . Heat Transferred 200 | . 200 . Parts Sabotaged . | . . . Parts Stolen . | . . . Parts Stripped . | . . . Power Chain Reactions 4 | . 4 . Alert | -11 -10 -10 ------- Run | Yrd Mat Min Maximum Alert Level . | . . . Low Security (%) 100 | 100 100 100 Level 1 . | . . . Level 2 . | . . . Level 3 . | . . . Level 4 . | . . . Level 5 . | . . . High Security . | . . . Max Security . | . . . Peak Influence 187 | . 187 92 Initial 69 | . . 69 Average 59 | . 62 56 Influence Increases 636 | . 583 53 Destroy 0b10 Robot/C 320 | . 280 40 Destroy 0b10 Robot/NC 55 | . 55 . Destroy Leader 90 | . 80 10 Allied During Kill 3 | . . 3 Successful Hack 25 | . 25 . Disable Machine 60 | . 60 . Destroy Structure 8 | . 8 . Lose Combat Pursuer 75 | . 75 . Influence Decreases 636 | . 404 232 Entered New Map 110 | . . 110 Time Decay 484 | . 384 100 Lost Part 22 | . 20 2 Lost Ally 20 | . . 20 Squads Dispatched 5 | . 5 . Investigation 4 | . 4 . Extermination . | . . . Reinforcement 1 | . 1 . Assault . | . . . Garrison . | . . . Intercept . | . . . Searches Triggered . | . . . Construction Impeded . | . . . Haulers Reinforced . | . . . Active Scanning Responses . | . . . Cargo Convoy Interrupts . | . . . Stealth | -11 -10 -10 --------- Run | Yrd Mat Min Distress Signals . | . . . Communications Jammed . | . . . Distress Signals . | . . . Times Spotted 31 | . 26 5 Peak Tracking Total 4 | . 4 2 Tactical Retreats 5 | . 5 . Traps | -11 -10 -10 ------- Run | Yrd Mat Min Traps Triggered 4 | . 4 . Indirectly . | . . . Trap Hack Attempts . | . . . Triggered . | . . . Disarmed . | . . . Reprogrammed . | . . . Reused . | . . . Traps Extracted . | . . . Installed . | . . . Triggered . | . . . Machines | -11 -10 -10 ---------- Run | Yrd Mat Min Machines Disabled 4 | . 4 . Max in Single Turn 1 | . 1 . Machines Repaired . | . . . Machines Dismantled . | . . . Machines Sabotaged . | . . . Overloaded Fab Kills . | . . . Hacking | -11 -10 -10 --------- Run | Yrd Mat Min Machines Accessed 6 | . 6 . Terminals 6 | . 6 . Fabricators . | . . . Repair Stations . | . . . Recycling Units . | . . . Scanalyzers . | . . . Garrison Access . | . . . Total Hacks 20 | . 20 . Successful 9 | . 9 . Failed 11 | . 11 . Catastrophic 2 | . 2 . Database Lockouts . | . . . Manual 17 | . 17 . Terminals 20 | . 20 . Fabricators . | . . . Repair Stations . | . . . Recycling Units . | . . . Scanalyzers . | . . . Garrison Access . | . . . Terminal Hacks 4 | . 4 . Locate Traps 1 | . 1 . Recall Reinforcements 1 | . 1 . Hauler Manifests 1 | . 1 . Zone Layout 1 | . 1 . Fabricator Hacks . | . . . Repair Station Hacks . | . . . Recycling Unit Hacks . | . . . Scanalyzer . | . . . Garrison Access Hacks . | . . . Unauthorized Hacks 4 | . 4 . Terminals 4 | . 4 . Botnet 4 | . 4 . Fabricators . | . . . Repair Stations . | . . . Recycling Units . | . . . Scanalyzers . | . . . Garrison Access . | . . . Data Cores Recovered . | . . . Used . | . . . Hacking Detections 5 | . 5 . Full Trace Events 3 | . 3 . Feedback Events . | . . . Feedback Blocked . | . . . Robot Schematics Acquired . | . . . Robots Built . | . . . Authchips . | . . . Time . | . . . Total Robot Build Rating . | . . . Part Schematics Acquired . | . . . Parts Built . | . . . Authchips . | . . . Time . | . . . Total Part Build Rating . | . . . Part Studies Acquired . | . . . Parts Repaired . | . . . Time . | . . . Parts Recycled . | . . . Recycled Matter . | . . . Retrieved Matter . | . . . Retrieved Components . | . . . Parts Scanalyzed . | . . . Part Schematics Acquired . | . . . Parts Damaged . | . . . Bothacking | -11 -10 -10 ------------ Run | Yrd Mat Min Used RIF Installer . | . . . Robots Hacked . | . . . Non-combat . | . . . Combat . | . . . Robot Hacks Applied . | . . . Relay Couplers Released . | . . . Fabnet Peak Effective % . | . . . Robots Rewired . | . . . Allies Hacked . | . . . Hacks Repelled . | . . . Allies | -11 -10 -10 -------- Run | Yrd Mat Min Total Allies 1 | . . 1 Largest Group 1 | . . 1 Highest-Rated Group 31 | . . 31 Highest-Rated Ally 31 | . . 31 Total Orders . | . . . Ally Attacks 11 | . . 11 Total Damage 125 | . . 125 Kills 3 | . . 3 Allies Corrupted . | . . . Allies Melted . | . . . Intel | -11 -10 -10 ------- Run | Yrd Mat Min Active Infowar (turns) 711 | . 494 217 Terrain 380 | . 163 217 ECM 331 | . 331 . Robot Analysis Total . | . . . Derelict Logs Recovered 1 | . . 1 Drone Launches . | . . . Drone Recoveries . | . . . Exploration | -11 -10 -10 ------------- Run | Yrd Mat Min Turns Passed 1604 | 56 1327 221 Spaces Moved 838 | 32 672 134 Core 10 | 9 1 . Treads 828 | 23 671 134 Legs . | . . . Wheels . | . . . Hover . | . . . Flight . | . . . Fastest Speed 50 | 50 160 160 Average Speed 159 | 143 160 160 Slowest Speed 240 | 160 240 160 Overloaded Moves . | . . . Propulsion Burnouts . | . . . Robots Hopped . | . . . Potential Cave-ins . | . . . Cave-ins Triggered . | . . . Exploration Rate (%) 41 | 3 95 27 Regions Visited 2 Branch Regions 1 Pre-discovered Areas . | . . . Known Exits Taken . | . . . Unknown Exits Taken 2 | 1 1 . Scrap Searched . | . . . Spaces Dug . | . . . Terrain Destroyed 8 | . 8 . Melee . | . . . Projectile . | . . . AOE 8 | . 8 . Terrain Rammed . | . . . Walls Destroyed . | . . . Machines Disabled . | . . . Actions | -11 -10 -10 --------- Run | Yrd Mat Min Total 968 | 39 787 142 Wait 5 | . 5 . Move 836 | 31 671 134 Hop . | . . . Pick Up 19 | 2 15 2 Fast Attach 14 | 6 8 . Attach 3 | . 3 . Detach . | . . . Swap 8 | . 8 . Drop 9 | . 4 5 Fire 74 | . 73 1 Melee . | . . . Ram . | . . . Kick . | . . . Crush . | . . . Escape Stasis . | . . . Rewire . | . . . Trap . | . . . Miscellaneous . | . . . Route ------- -11/Scrapyard -10/Materials (discovered 5 exits: [*Mat x3] / [*Min] / [*Sub]) -10/Mines (discovered 1 exit: [*Mat]) History --------- Turn | Location | Event 8 | -11/Scrapyard | Discovered new exit (range 16) 57 | -11/Scrapyard | Entered Materials 237 | -10/Materials | Discovered new exit (range 6) 301 | -10/Materials | Build established: Mutant 326 | -10/Materials | Discovered new exit (range 6) 768 | -10/Materials | Discovered new exit (range 16) 1094 | -10/Materials | Discovered new exit (range 16) 1342 | -10/Materials | Discovered new exit (range 15) 1384 | -10/Materials | Entered Mines 1387 | -10/Mines | Received a Mining Laser from a helpful Derelict 1470 | -10/Mines | Discovered new exit (range 5) 1574 | -10/Mines | Learned Materials stockpile data 1580 | -10/Mines | Assembled infested the area 1601 | -10/Mines | Core integrity fell below 50% 1604 | -10/Mines | Core integrity fell below 20% 1605 | -10/Mines | Destroyed by D-53 Grenadier with Mini Grenade Launcher Last Messages --------------- 01496_ U-05 Engineer lays Concrete. 01500_ K-01 Serf collects debris. 01506_ U-05 Engineer lays Concrete. 01509_ T-07 Excavator is excavating. 01509_ U-05 Engineer lays Concrete. 01515_ U-05 Engineer builds a Wall. 01519_ T-07 Excavator is excavating. 01520_ U-05 Engineer lays Concrete. 01523_ T-07 Excavator is excavating. 01523_ U-05 Engineer builds a Wall. 01574_ Acquired derelict log, extracted data. Data stored: Materials stockpile data. 01580_ ALERT: Infestation in the mines, dispatching Demolisher response squad. 01585_ System corrupted: Matter fused (-6). 01600_ C-45 Heavy ARC bursts open, deploying its payload. 01600_ D-53 Grenadier unfolds itself. 01601_ Terrain Scanner destroyed. 01604_ The unstable cave ceiling collapses. 01605_ Lgt. Treads destroyed. Map ----- +----------------------------------------------------+ | ?????######??????????????????# ????????????????? | | ????## *###?????????????????# ????????????????? | | ##??# ** ##????????????????# #????????????????? | | #??# * #??????????????#?# #????????????????? | | #??# #?#???????????? ## ##?????#?????????? | | #??## #?#????????????? #???????????????? | | #???### ##??????????????? ???????????????? | | #?????# ###???????#???? ???? ? ??????????????? | | ##????# #??????????????????? ????????????????? | | ####### #?#####?????????????# #????????????????? | | ### #?#????????#??# #????????????????? | | ########## #?????????????# #????????????????? | | #?#?????## ###?#???#??#???# #????????????????? | | #???#?#??## #?#?????????#### #???#????????????? | | ########### #?#?????????# #????????????????? | | =## ##????????#?# #????????????????? | | # #?????????## ####????????????????? | | # ##### #########?## ####?????? ?????????? | | #???# ### ###??????????????? | | " #???# ## #???????????????? | | " #??### < ####### # #???????????????? | | " #####???## #????# #???????????????? | | #???????## #????# #???????????????? | | " #?#????## #???## d #???????????????? | | " #?????## ####??# d ###???????????????? | | " #?????# #### @ #??#?????????????? | | #?????# ## ##????????????????? | | #???#### ### ## ??????????? | | ##??????#####?? ### ????????? | | ????????#?????######?####### ### ?????????? | | ???????????#????#??????????####???## ?????????? | | ?????????????????????????????????????## ?????????? | | ?????????????????????????????????????????????????? | | ???#?????????????????#???????????????????????????? | | ?????????#???????????????????????????????????????? | | ?????????????????????????????????????????????????? | | ?????????????????????????????????????????????????? | | ?????????????????????????????????????????????????? | | ????????#?#?#????????????????????????????????????? | | | | | | | | | | | | | | | | | | | | | | | +----------------------------------------------------+ Best States ------------- Heat Dissipation 35 Energy Generation 12 Energy Capacity 265 Matter Stores 300 Matter Capacity 300 Sight Range 16 Terrain Scan Range 14 Terrain Scan Density 10 ECM Strength 1 Evasion (%) 40 Recoil Reduction 2 Item Schematics ----------------- None Robot Schematics ------------------ None Fabricated ------------ Nothing Repaired ---------- Nothing Studied --------- None Alien Tech Used ----------------- None Achievements -------------- None Challenges ------------ None Game ------ Seed AngularGrenadeMeganuke Manual? 0 Play Time 00:12:50 Cumulative 97.1 hours Start 2026.09.19 @ 22:47:52 End 2026.09.19 @ 23:29:51 Sessions 1 Manual Loads 0 Difficulty Rogue Special Mode None Game No. 153 Rogue 153 Adventurer 0 Explorer 0 Win Type - Total 0 Types 0/0/0/0/0/0/0/0/0/0 Lore% 23 Gallery% 34 Achievement% 30 Wizard Run 0 Options --------- Layout 0 ASCII 0 Keyboard 0 Movement Mouse Keybinds 0 Fullscreen 1 Font 24/Smallcaps Map View 38x25 Zoom Use 100% Tactical HUD 1 Map Filters NONE Filters NONE Steam 1 RUN: a12531f6-b291-40c2-95c4-5524d7cff6bc